lending/lending_fUSD_20250224
["ID","MTS","AMOUNT","RATE_DAILY","PERIOD"]
[354329576,1740419450107,-176.463417,0.00020682,2]
[354329577,1740419450116,-176.463417,0.00020682,2]
[354329578,1740419450126,-176.463417,0.00020682,2]
[354329579,1740419450135,-164.410286,0.00020682,2]
[354329580,1740419450144,-164.410286,0.00020682,2]
[354329581,1740419450153,-164.410286,0.00020682,2]
[354329582,1740419450163,-164.410286,0.00020682,2]
[354329583,1740419450171,-176.463417,0.00020682,2]
[354329584,1740419450181,-176.463417,0.00020682,2]
[354329585,1740419450191,-176.463417,0.00020682,2]
[354329586,1740419450200,-176.463417,0.00020682,2]
[354329587,1740419450209,-164.410286,0.00020682,2]
[354329588,1740419450218,-164.410286,0.00020682,2]
[354329589,1740419450227,-164.410286,0.00020682,2]
[354329590,1740419450236,-164.410286,0.00020682,2]
[354329591,1740419450245,-150.0,0.000207,2]
[354329592,1740419450254,-539.1,0.00020739,2]
[354329593,1740419450262,-826.49,0.00020821,7]
[354329594,1740419450271,-539.1,0.00020876,2]
[354329595,1740419450280,-188.42772022,0.00021,7]
[354329596,1740419450289,-301.28417817,0.00021,2]
[354329597,1740419450298,-539.1,0.00021013,2]
[354329598,1740419450307,-151.0,0.00021041,120]
[354329599,1740419450316,-539.23514773,0.0002115,2]
[354329600,1740419450325,-1758.92257645,0.00021454,2]
[354329601,1740419450334,-4360.28144337,0.00021454,2]
[354329602,1740419450342,-263713.76833622,0.00021554,2]
[354329603,1740419450351,-151.0,0.00021554,2]
[354329604,1740419450360,-249.668806,0.00021554,2]
[354329605,1740419450371,-249.668806,0.00021554,2]
[354329606,1740419450380,-151.0,0.00021554,2]
[354329607,1740419450389,-151.0,0.00021554,2]
[354329608,1740419450398,-586.671707,0.00021554,2]
[354329609,1740419450406,-586.671707,0.00021554,2]
[354329610,1740419450416,-151.0,0.00021554,2]
[354329611,1740419450425,-151.0,0.00021554,2]
[354329612,1740419450434,-187.359585,0.00021554,2]
[354329613,1740419450443,-187.359585,0.00021554,2]
[354329614,1740419450452,-151.0,0.00021554,2]
[354329615,1740419450461,-194.551977,0.00021554,2]
[354329616,1740419450470,-205.106857,0.00021554,2]
[354329617,1740419450479,-194.551978,0.00021554,2]
[354329618,1740419450488,-151.0,0.00021554,2]
[354329619,1740419450498,-151.0,0.00021554,2]
[354329620,1740419450507,-151.0,0.00021554,2]
[354329621,1740419450516,-312.393513,0.00021554,2]
[354329622,1740419450524,-312.393513,0.00021554,2]
[354329623,1740419450533,-151.0,0.00021554,2]
[354329624,1740419450542,-176.463417,0.00021554,2]
[354329625,1740419450551,-164.410286,0.00021554,2]
[354329626,1740419450560,-176.463417,0.00021554,2]
[354329627,1740419450569,-164.410286,0.00021554,2]
[354329628,1740419450578,-151.0,0.00021554,2]
[354329629,1740419450587,-151.0,0.00021554,2]
[354329630,1740419450596,-508.677672,0.00021554,2]
[354329631,1740419450605,-508.677672,0.00021554,2]
[354329632,1740419450614,-918.270686,0.00021554,2]
[354329633,1740419450624,-918.270686,0.00021554,2]
[354329634,1740419450635,-151.0,0.00021554,2]
[354329635,1740419450644,-184.185238,0.00021554,2]
[354329636,1740419450653,-184.185238,0.00021554,2]
[354329637,1740419450662,-744.129612,0.00021554,2]
[354329638,1740419450671,-151.0,0.00021554,2]
[354329639,1740419450684,-282.296089,0.00021554,2]
[354329640,1740419450693,-229.613081,0.00021554,2]
[354329641,1740419450703,-229.613081,0.00021554,2]
[354329642,1740419450713,-171.8349,0.00021554,2]
[354329643,1740419450724,-171.8349,0.00021554,2]
[354329644,1740419450733,-767.71,0.00021718,2]
[354329645,1740419450742,-695.41,0.00021981,30]
[354329646,1740419450751,-151.0,0.00022082,120]
[354329647,1740419450761,-168.49,0.00022264,2]
[354329648,1740419450770,-215.69304612,0.00022278,2]
[354329649,1740419450779,-1226.88034,0.000224,2]
[354329650,1740419450787,-1582.1080861,0.00022757,2]
[354329651,1740419450796,-180.18,0.000228,7]
[354329652,1740419450805,-180.0,0.00022904,120]
[354329653,1740419450814,-156.11,0.00023014,2]
[354329654,1740419450823,-151.0,0.00023123,120]
[354329655,1740419450832,-163.86876553,0.0002315,2]
[354329656,1740419450842,-318.72088959,0.00023233,2]
[354329657,1740419450851,-1110.0,0.00023301,2]
[354329658,1740419450860,-287.07,0.00023836,2]
[354329659,1740419450870,-767.71,0.00023967,2]
[354329660,1740419450879,-3000.0,0.00023978,3]
[354329661,1740419450888,-151.0,0.00024164,120]
[354329662,1740419450897,-1000.0,0.000243,2]
[354329663,1740419450907,-168.6120684,0.0002445,2]
[354329664,1740419450915,-152.150533,0.00024485,2]
[354329665,1740419450925,-168.119358,0.00024485,2]
[354329666,1740419450934,-1378.5105799,0.000245,120]
[354329667,1740419450943,-695.41,0.00024565,30]
[354329668,1740419450952,-5000.0,0.00024658,2]
[354329669,1740419450961,-5000.0,0.00024658,2]
[354329670,1740419450970,-5000.0,0.00024658,2]
[354329671,1740419450979,-5000.0,0.00024658,2]
[354329672,1740419450988,-5000.0,0.00024658,2]
[354329673,1740419450998,-5000.0,0.00024658,2]
[354329674,1740419451007,-5000.0,0.00024658,2]
[354329675,1740419451016,-5000.0,0.00024658,2]
[354329676,1740419451026,-5000.0,0.00024658,2]
[354329677,1740419451035,-5000.0,0.00024658,2]
[354329678,1740419451044,-5000.0,0.00024658,2]
[354329679,1740419451053,-5000.0,0.00024658,2]
[354329680,1740419451062,-5000.0,0.00024658,2]
[354329681,1740419451071,-5000.0,0.00024658,2]
[354329682,1740419451081,-5000.0,0.00024658,2]
[354329683,1740419451089,-5000.0,0.00024658,2]
[354329684,1740419451099,-5000.0,0.00024658,2]
[354329685,1740419451108,-5000.0,0.00024658,2]
[354329686,1740419451117,-5000.0,0.00024658,2]
[354329687,1740419451126,-5000.0,0.00024658,2]
[354329688,1740419451135,-5000.0,0.00024658,2]
[354329689,1740419451144,-5000.0,0.00024658,2]
[354329690,1740419451154,-5000.0,0.00024658,2]
[354329691,1740419451163,-5000.0,0.00024658,2]
[354329692,1740419451175,-5000.0,0.00024658,2]
[354329693,1740419451184,-4943.871001,0.00024658,2]
[354329694,1740419451194,-1000.0,0.00024658,2]
[354329695,1740419451203,-249.668806,0.00024658,7]
[354329696,1740419451213,-249.668806,0.00024658,7]
[354329697,1740419451222,-151.0,0.00024658,7]
[354329698,1740419451231,-301.160856,0.00024658,7]
[354329699,1740419451240,-586.671707,0.00024658,7]
[354329700,1740419451249,-586.671707,0.00024658,7]
[354329701,1740419451258,-156.024021,0.00024658,7]
[354329702,1740419451267,-312.393513,0.00024658,7]
[354329703,1740419451276,-312.393513,0.00024658,7]
[354329704,1740419451286,-151.0,0.00024658,7]
[354329705,1740419451295,-176.463417,0.00024658,7]
[354329706,1740419451304,-164.410286,0.00024658,7]
[354329707,1740419451313,-176.463416,0.00024658,7]
[354329708,1740419451322,-164.410286,0.00024658,7]
[354329709,1740419451332,-151.0,0.00024658,7]
[354329710,1740419451341,-184.185238,0.00024658,7]
[354329711,1740419451350,-184.185238,0.00024658,7]
[354329712,1740419451359,-744.129621,0.00024658,7]
[354329713,1740419451369,-151.0,0.00024658,7]
[354329714,1740419451378,-229.613081,0.00024658,7]
[354329715,1740419451388,-229.61308,0.00024658,7]
[354329716,1740419451397,-171.8349,0.00024658,7]
[354329717,1740419451407,-171.834907,0.00024658,7]
[354329718,1740419451416,-586.671707,0.00025,7]
[354329719,1740419451425,-586.6717,0.00025,7]
[354329720,1740419451434,-38556.81854936,0.00025,2]
[354329721,1740419451443,-151.0,0.00025,7]
[354329722,1740419451452,-254.11351,0.00025,7]
[354329723,1740419451462,-508.677672,0.00025,7]
[354329724,1740419451471,-508.677679,0.00025,7]
[354329725,1740419451480,-918.270686,0.00025,7]
[354329726,1740419451489,-918.270686,0.00025,7]
[354329727,1740419451497,-202.0,0.00025069,120]
[354329728,1740419451507,-202.0,0.00025079,120]
[354329729,1740419451515,-202.0,0.00025089,120]
[354329730,1740419451524,-152.150533,0.00025097,2]
[354329731,1740419451533,-249.668806,0.00025099,7]
[354329732,1740419451686,-249.668806,0.00025099,7]
[354329733,1740419451695,-151.0,0.00025099,7]
[354329734,1740419451704,-151.0,0.00025205,120]
[354329735,1740419451713,-280.0,0.000253,10]
[354329736,1740419451724,-152.150533,0.00025709,2]
[354329737,1740419451734,-180.0,0.00025808,120]
[354329738,1740419451743,-341.1441,0.00025888,30]
[354329739,1740419451752,-767.71,0.00026217,2]
[354329740,1740419451761,-151.0,0.00026247,120]
[354329741,1740419451770,-150.0,0.00026574,2]
[354329742,1740419451779,-215.69304612,0.00026682,2]
[354329743,1740419451788,-8000.0,0.00027,2]
[354329744,1740419451797,-150.0,0.00027,120]
[354329745,1740419451806,-150.0,0.00027,120]
[354329746,1740419451815,-150.0,0.00027,120]
[354329747,1740419451824,-150.0,0.00027,120]
[354329748,1740419451833,-150.0,0.00027,120]
[354329749,1740419451842,-150.0,0.00027,120]
[354329750,1740419451851,-214.58028,0.00027,120]
[354329751,1740419451860,-2000.0,0.00027,2]
[354329752,1740419451869,-186.0,0.00027,2]
[354329753,1740419451879,-152.0,0.00027,2]
[354329754,1740419451887,-2123.499631,0.0002701,2]
[354329755,1740419451896,-695.41,0.00027149,30]
[354329756,1740419451906,-151.0,0.00027288,120]
[354329757,1740419451915,-151.0,0.00027397,7]
[354329758,1740419451924,-151.0,0.00027397,7]
[354329759,1740419451933,-151.0,0.00027397,7]
[354329760,1740419451942,-151.0,0.00027397,7]
[354329761,1740419451951,-151.0,0.00027397,7]
[354329762,1740419451960,-151.0,0.00027397,7]
[354329763,1740419451968,-151.0,0.00027397,7]
[354329764,1740419451978,-151.0,0.00027397,7]
[354329765,1740419451987,-151.0,0.00027397,7]
[354329766,1740419451996,-151.0,0.00027397,7]
[354329767,1740419452005,-271.022169,0.00027397,7]
[354329768,1740419452014,-1353.05,0.00027397,2]
[354329769,1740419452023,-25000.0,0.000275,120]
[354329770,1740419452032,-151.0,0.000275,7]
[354329771,1740419452041,-312.393513,0.000275,7]
[354329772,1740419452051,-312.39351,0.000275,7]
[354329773,1740419452060,-151.0,0.000275,7]
[354329774,1740419452070,-164.410286,0.000275,7]
[354329775,1740419452079,-164.41029,0.000275,7]
[354329776,1740419452088,-186.0,0.00027671,2]
[354329777,1740419452097,-391.0,0.0002783,15]
[354329778,1740419452106,-500.0,0.00028,120]
[354329779,1740419452115,-151.0,0.00028,7]
[354329780,1740419452124,-7291.99,0.00028,2]
[354329781,1740419452134,-150.0,0.00028074,5]
[354329782,1740419452143,-151.0,0.00028329,120]
[354329783,1740419452151,-163.86876553,0.000284,2]
[354329784,1740419452161,-767.71,0.00028467,2]
[354329785,1740419452170,-150.0,0.00028619,2]
[354329786,1740419452179,-150.0,0.00028706,2]
[354329787,1740419452188,-180.0,0.00028712,120]
[354329788,1740419452197,-186.0,0.00028767,2]
[354329789,1740419452206,-270.43,0.000288,14]
[354329790,1740419452215,-150.0,0.00028867,2]
[354329791,1740419452224,-150.0,0.00028891,2]
[354329792,1740419452233,-150.0,0.00028918,2]
[354329793,1740419452242,-150.0,0.00028957,2]
[354329794,1740419452251,-150.0,0.00028975,2]
[354329795,1740419452260,-44224.6644406,0.00029,10]
[354329796,1740419452269,-168.49,0.00029012,2]
[354329797,1740419452278,-150.0,0.00029148,2]
[354329798,1740419452287,-1582.1080861,0.00029186,2]
[354329799,1740419452296,-150.0,0.00029332,2]
[354329800,1740419452305,-155.762769,0.00029344,7]
[354329801,1740419452314,-151.0,0.0002937,120]
[354329802,1740419452323,-150.0,0.00029507,2]
[354329803,1740419452332,-150.0,0.00029519,2]
[354329804,1740419452340,-150.0,0.00029576,2]
[354329805,1740419452349,-150.0,0.00029588,2]
[354329806,1740419452358,-150.0,0.00029607,2]
[354329807,1740419452367,-150.0,0.00029664,2]
[354329808,1740419452376,-695.41,0.00029733,30]
[354329809,1740419452385,-150.0,0.00029823,2]
[354329810,1740419452394,-150.0,0.00029842,2]
[354329811,1740419452402,-2505.97561748,0.000299,120]
[354329812,1740419452411,-150.0,0.00029929,2]
[354329813,1740419452420,-150.0,0.00029944,2]
[354329814,1740419452430,-150.0,0.00029959,2]
[354329815,1740419452439,-150.0,0.00029988,2]
[354329816,1740419452448,-1000.0,0.00029999,120]
[354329817,1740419452457,-100000.0,0.0003,30]
[354329818,1740419452466,-409.58206555,0.0003,20]
[354329819,1740419452476,-588.36674074,0.0003,30]
[354329820,1740419452485,-500.0,0.0003,120]
[354329821,1740419452494,-5095.0,0.0003,120]
[354329822,1740419452503,-155.762767,0.0003,7]
[354329823,1740419452512,-249.668806,0.0003,7]
[354329824,1740419452521,-249.668799,0.0003,7]
[354329825,1740419452530,-151.0,0.0003,7]
[354329826,1740419452539,-200.0,0.0003,30]
[354329827,1740419452547,-151.0,0.0003,7]
[354329828,1740419452556,-918.270686,0.0003,7]
[354329829,1740419452565,-918.270678,0.0003,7]
[354329830,1740419452574,-150.0,0.00030059,2]
[354329831,1740419452583,-150.0,0.00030098,2]
[354329832,1740419452592,-156.11,0.00030137,2]
[354329833,1740419452601,-150.0,0.00030139,2]
[354329834,1740419452610,-150.0,0.0003014,2]
[354329835,1740419452619,-190.0,0.00030205,2]
[354329836,1740419452628,-150.0,0.00030224,2]
[354329837,1740419452640,-1080.99581395,0.0003038,2]
[354329838,1740419452649,-9263.05706159,0.000304,30]
[354329839,1740419452658,-151.0,0.00030411,120]
[354329840,1740419452667,-150.0,0.00030458,2]
[354329841,1740419452677,-2143.27251781,0.00030498,40]
[354329842,1740419452686,-2003.0,0.000305,20]
[354329843,1740419452695,-150.0,0.00030508,2]
[354329844,1740419452704,-1571.74,0.000306,15]
[354329845,1740419452715,-473.0,0.00030613,30]
[354329846,1740419452725,-150.0,0.00030654,2]
[354329847,1740419452734,-150.0,0.0003071,2]
[354329848,1740419452743,-767.71,0.00030717,2]
[354329849,1740419452752,-150.0,0.00030741,2]
[354329850,1740419452761,-150.0,0.0003081,2]
[354329851,1740419452770,-150.0,0.00030815,2]
[354329852,1740419452779,-150.0,0.00030838,2]
[354329853,1740419452787,-207.43677798,0.00030839,2]
[354329854,1740419452799,-150.0,0.00030889,2]
[354329855,1740419452808,-300.0,0.000309,11]
[354329856,1740419452817,-150.0,0.00030962,2]
[354329857,1740419452826,-150.0,0.00030978,2]
[354329858,1740419452835,-568.6464073,0.00030993,2]
[354329859,1740419452844,-391.8599247,0.00030993,2]
[354329860,1740419452853,-100000.0,0.00031,32]
[354329861,1740419452862,-151.0,0.00031,7]
[354329862,1740419452871,-18304.63697776,0.00031,4]
[354329863,1740419452880,-534.850993,0.00031007,2]
[354329864,1740419452889,-150.0,0.00031028,2]
[354329865,1740419452898,-150.0,0.00031064,2]
[354329866,1740419452907,-150.0,0.00031066,2]
[354329867,1740419452916,-326.71912814,0.00031077,2]
[354329868,1740419452925,-1000.0,0.00031084,2]
[354329869,1740419452934,-215.69304612,0.00031087,2]
[354329870,1740419452943,-150.0,0.00031136,2]
[354329871,1740419452952,-152.0,0.00031143,3]
[354329872,1740419452961,-980.36087186,0.00031161,2]
[354329873,1740419452970,-150.0,0.00031169,2]
[354329874,1740419452979,-150.0,0.00031174,2]
[354329875,1740419452988,-150.0,0.00031189,2]
[354329876,1740419452997,-150.0,0.00031207,2]
[354329877,1740419453006,-150.0,0.00031214,2]
[354329878,1740419453015,-150.0,0.00031227,2]
[354329879,1740419453024,-150.0,0.00031228,2]
[354329880,1740419453034,-150.0,0.0003123,2]
[354329881,1740419453043,-150.0,0.00031247,2]
[354329882,1740419453051,-150.0,0.00031253,2]
[354329883,1740419453061,-150.0,0.00031286,2]
[354329884,1740419453070,-150.0,0.00031314,2]
[354329885,1740419453079,-150.0,0.00031348,2]
[354329886,1740419453088,-150.0,0.00031374,2]
[354329887,1740419453097,-150.0,0.00031413,2]
[354329888,1740419453106,-150.0,0.00031418,2]
[354329889,1740419453115,-151.0,0.00031452,120]
[354329890,1740419453124,-150.0,0.00031494,2]
[354329891,1740419453133,-150.0,0.00031528,2]
[354329892,1740419453142,-150.0,0.00031546,2]
[354329893,1740419453151,-150.0,0.00031558,2]
[354329894,1740419453160,-150.0,0.00031579,2]
[354329895,1740419453170,-180.0,0.00031616,120]
[354329896,1740419453179,-150.0,0.00031633,2]
[354329897,1740419453188,-150.0,0.00031648,2]
[354329898,1740419453197,-150.0,0.00031701,2]
[354329899,1740419453206,-1000.0,0.00031702,2]
[354329900,1740419453215,-150.0,0.00031732,2]
[354329901,1740419453224,-150.0,0.00031751,2]
[354329902,1740419453233,-150.0,0.00031762,2]
[354329903,1740419453242,-150.0,0.00031765,2]
[354329904,1740419453251,-1000.0,0.00031768,2]
[354329905,1740419453260,-9999.99999996,0.00031781,7]
[354329906,1740419453269,-45195.6549475,0.00031781,7]
[354329907,1740419453279,-13023.2169638,0.00031781,7]
[354329908,1740419453287,-510.66493326,0.00031781,7]
[354329909,1740419453297,-11621.8821517,0.00031781,7]
[354329910,1740419453306,-100000.0,0.00032,34]
[354329911,1740419453315,-500.0,0.00032,120]
[354329912,1740419453324,-151.0,0.00032,7]
[354329913,1740419453332,-186.0,0.00032219,2]
[354329914,1740419453341,-695.41,0.00032317,30]
[354329915,1740419453351,-151.0,0.00032493,120]
[354329916,1740419453360,-150.0,0.00032765,120]
[354329917,1740419453370,-767.71,0.00032966,2]
[354329918,1740419453379,-556.760804,0.0003299,2]
[354329919,1740419453388,-1000.0,0.00032999,120]
[354329920,1740419453397,-100000.0,0.00033,36]
[354329921,1740419453406,-515.437453,0.00033,14]
[354329922,1740419453415,-300000.0,0.00033,30]
[354329923,1740419453423,-150.0,0.00033078,120]
[354329924,1740419453435,-252.04128542,0.000333,2]
[354329925,1740419453444,-151.0,0.00033534,120]
[354329926,1740419453453,-152.0,0.00033551,4]
[354329927,1740419453462,-163.86876553,0.0003365,5]
[354329928,1740419453471,-181.95233063,0.0003379,2]
[354329929,1740419453480,-421.2280962,0.00033886,90]
[354329930,1740419453489,-100000.0,0.00034,38]
[354329931,1740419453498,-500.0,0.00034,120]
[354329932,1740419453507,-151.0,0.00034,7]
[354329933,1740419453515,-186.0,0.00034233,2]
[354329934,1740419453524,-186.0,0.00034521,2]
[354329935,1740419453533,-180.0,0.00034521,120]
[354329936,1740419453542,-150.0,0.00034548,10]
[354329937,1740419453551,-151.0,0.00034575,120]
[354329938,1740419453560,-394.71654898,0.000346,2]
[354329939,1740419453569,-6233.99179025,0.00034633,2]
[354329940,1740419453578,-22626.01,0.000347,120]
[354329941,1740419453587,-695.41,0.00034901,120]
[354329942,1740419453595,-1500.0,0.00034993,5]
[354329943,1740419453604,-1000.0,0.00034999,120]
[354329944,1740419453613,-100000.0,0.00035,40]
[354329945,1740419453623,-297702.37894854,0.00035,120]
[354329946,1740419453632,-151.0,0.00035,7]
[354329947,1740419453643,-500000.0,0.00035,30]
[354329948,1740419453652,-301.60685095,0.00035,2]
[354329949,1740419453661,-500.0,0.00035068,60]
[354329950,1740419453670,-800.0,0.00035068,60]
[354329951,1740419453679,-287.07,0.00035068,2]
[354329952,1740419453689,-767.71,0.00035216,2]
[354329953,1740419453699,-150.0,0.00035355,120]
[354329954,1740419453707,-215.69304612,0.00035491,2]
[354329955,1740419453716,-1582.1080861,0.00035614,8]
[354329956,1740419453726,-800.0,0.00035616,60]
[354329957,1740419453735,-151.0,0.00035616,120]
[354329958,1740419453743,-168.49,0.00035761,2]
[354329959,1740419453752,-423.0,0.00035886,90]
[354329960,1740419453761,-152.0,0.00035959,5]
[354329961,1740419453770,-2901.5561431,0.00035975,2]
[354329962,1740419453779,-100000.0,0.00036,42]
[354329963,1740419453788,-638.29017404,0.00036,2]
[354329964,1740419453797,-500.0,0.00036,120]
[354329965,1740419453807,-300000.0,0.00036,45]
[354329966,1740419453816,-159.7,0.00036,2]
[354329967,1740419453825,-800.0,0.00036164,60]
[354329968,1740419453834,-150.0,0.00036164,60]
[354329969,1740419453844,-150.0,0.00036164,60]
[354329970,1740419453853,-150.0,0.00036164,60]
[354329971,1740419453862,-150.0,0.00036164,2]
[354329972,1740419453872,-500.0,0.00036164,60]
[354329973,1740419453881,-150.0,0.00036164,2]
[354329974,1740419453891,-150.0,0.00036164,2]
[354329975,1740419453900,-161.34130857,0.00036164,60]
[354329976,1740419453909,-500.0,0.00036164,60]
[354329977,1740419453918,-500.0,0.00036164,60]
[354329978,1740419453927,-500.0,0.00036164,60]
[354329979,1740419453937,-150.0,0.00036191,60]
[354329980,1740419453946,-640.00036646,0.00036191,60]
[354329981,1740419453955,-150.0,0.00036191,2]
[354329982,1740419453964,-500.0,0.00036191,60]
[354329983,1740419453973,-200.74375446,0.00036219,60]
[354329984,1740419453982,-200.0,0.00036219,2]
[354329985,1740419453991,-500.0,0.00036219,60]
[354329986,1740419454000,-500.0,0.00036246,60]
[354329987,1740419454009,-186.0,0.00036247,2]
[354329988,1740419454018,-500.0,0.00036274,60]
[354329989,1740419454027,-500.0,0.00036301,60]
[354329990,1740419454036,-500.0,0.00036328,60]
[354329991,1740419454045,-500.0,0.00036356,60]
[354329992,1740419454055,-500.0,0.00036383,60]
[354329993,1740419454064,-500.0,0.00036411,60]
[354329994,1740419454073,-543.69474426,0.00036438,60]
[354329995,1740419454082,-318.72088959,0.00036567,2]
[354329996,1740419454091,-151.0,0.00036658,120]
[354329997,1740419454100,-800.0,0.00036712,60]
[354329998,1740419454109,-500.0,0.00036712,60]
[354329999,1740419454119,-12708.70695756,0.000368,7]
[354330000,1740419454128,-300.0,0.000369,13]
[354330001,1740419454137,-465.4862809,0.00036975,2]
[354330002,1740419454147,-635.3438663,0.00036975,2]
[354330003,1740419454156,-100000.0,0.00037,44]
[354330004,1740419454165,-151.0,0.00037,7]
[354330005,1740419454174,-305165.1290756,0.00037,30]
[354330006,1740419454656,-61607.37940322,0.00037,30]
[354330007,1740419454667,-8887.33810375,0.00037,30]
[354330008,1740419454679,-402.58500002,0.00037,30]
[354330009,1740419455290,-10712.853212,0.00037,30]
[354330010,1740419455308,-1967.36374257,0.00037,30]
[354330011,1740419455662,-308.08723952,0.00037,30]
[354330012,1740419455674,-514.79987975,0.00037,30]
[354330013,1740419455685,-7453.60429518,0.00037,30]
[354330014,1740419455705,-124153.57071928,0.00037,30]
[354330015,1740419455717,-22410.20178556,0.00037,30]
[354330017,1740420557613,1320.86,0.0002,120]
[354330018,1740420572934,330.21,9.517e-05,2]
[354330019,1740420584606,247.66,9.517e-05,2]
[354330020,1740420598610,742.98,0.0002,120]
[354330029,1740420632142,-1093.31757929,9.899e-05,2]
[354330030,1740420632153,-150.0,9.899e-05,2]
[354330031,1740420632162,-44839.5281,9.9e-05,2]
[354330032,1740420632172,-992.8453,9.9e-05,2]
[354330033,1740420632181,-9067.0238,9.9e-05,2]
[354330034,1740420632190,-1000.0,9.9e-05,2]
[354330035,1740420632199,-638.36549718,9.9e-05,2]
[354330036,1740420632209,-500.0,0.00010889,2]
[354330037,1740420632219,-150.0,0.00010889,2]
[354330038,1740420632228,-500.0,0.00010889,2]
[354330039,1740420632238,-150.0,0.00010889,2]
[354330040,1740420632247,-500.0,0.00010889,2]
[354330041,1740420632256,-150.0,0.00010889,2]
[354330042,1740420632266,-236.61802143,0.000116,2]
[354330043,1740420632275,-236.61802141,0.00012486,2]
[354330044,1740420632284,-550.0,0.00013,2]
[354330045,1740420632293,-236.61802141,0.00014072,2]
[354330046,1740420632303,-600.0,0.00015,2]
[354330047,1740420632312,-500.0,0.000151,2]
[354330048,1740420632321,-565.3098335,0.00015112,2]
[354330049,1740420632330,-487.86,0.00015659,2]
[354330050,1740420632339,-150.99,0.00015659,2]
[354330051,1740420632348,-150.99,0.00015659,2]
[354330052,1740420632357,-299.99,0.00015659,2]
[354330053,1740420632365,-9999.99,0.00015659,2]
[354330054,1740420632374,-236.61802141,0.00015659,2]
[354330055,1740420632383,-500.0,0.0001634,2]
[354330056,1740420632392,-2872.383,0.0001698,2]
[354330057,1740420632401,-165.847,0.0001698,2]
[354330058,1740420632410,-728.0685657,0.00017199,2]
[354330059,1740420632419,-236.61802141,0.00017245,2]
[354330060,1740420632429,-151.0,0.00017973,2]
[354330061,1740420632438,-171.721401,0.00017973,2]
[354330062,1740420632448,-171.721401,0.00017973,2]
[354330063,1740420632458,-151.0,0.00017973,2]
[354330064,1740420632467,-151.0,0.00017973,2]
[354330065,1740420632477,-1005.32,0.00018,2]
[354330066,1740420632487,-151.0,0.00018,2]
[354330067,1740420632497,-151.0,0.00018,2]
[354330068,1740420632506,-171.721401,0.00018,2]
[354330069,1740420632516,-171.721401,0.00018,2]
[354330070,1740420632525,-171.721401,0.00018,2]
[354330071,1740420632534,-171.721401,0.00018,2]
[354330072,1740420632543,-151.0,0.00018,2]
[354330073,1740420632552,-284.671707,0.00018,2]
[354330074,1740420632561,-183.713113,0.00018,2]
[354330075,1740420632570,-500.0,0.000181,2]
[354330076,1740420632579,-500.0,0.00018364,2]
[354330077,1740420632588,-236.61802141,0.00018831,2]
[354330078,1740420632597,-1000.0,0.00019178,7]
[354330079,1740420632606,-1000.0,0.00019452,7]
[354330080,1740420632615,-182.28331995,0.00019514,2]
[354330081,1740420632624,-236.61802141,0.00020417,2]
[354330082,1740420632633,-171.721401,0.00020671,2]
[354330083,1740420632642,-171.721401,0.00020671,2]
[354330084,1740420632651,-171.721401,0.00020671,2]